bitfinex-derivatives/quotes_SOLF0:USTF0_20250425
["timestamp","ask_amount","ask_price","bid_price","bid_amount"]
[1745566624126,6.5107,153.55,153.52,6.5115]
[1745566624326,5.13734247,153.56,153.51,5.13734247]
[1745566625019,5.13734247,153.56,153.51,11.64934247]
[1745566625428,6.5112,153.54,153.51,11.64934247]
[1745566626228,6.5112,153.54,153.52,6.5116]
[1745566626429,5.13734247,153.56,153.51,5.13734247]
[1745566626729,28.53734247,153.58,153.51,5.13734247]
[1745566627029,6.5101,153.56,153.53,5.13734247]
[1745566627323,28.53734247,153.58,153.53,5.13734247]
[1745566627528,6.5098,153.57,153.54,6.5108]
[1745566628330,6.5101,153.56,153.54,6.5108]
[1745566629030,28.53734247,153.58,153.53,5.13734247]
[1745566629726,6.5102,153.56,153.54,6.5108]
[1745566632135,23.4,153.58,153.56,6.5096]
[1745566632529,23.4,153.58,153.55,5.13734247]
[1745566633235,6.5096,153.57,153.55,5.13734247]
[1745566633433,28.53734247,153.58,153.53,5.13734247]
[1745566633629,28.53734247,153.58,153.53,11.64834247]
[1745566634533,6.5102,153.56,153.53,11.64834247]
[1745566635633,6.5105,153.55,153.53,11.64834247]
[1745566636637,6.5102,153.56,153.53,11.64834247]
[1745566636934,6.5102,153.56,153.54,6.5108]
[1745566637433,6.5102,153.56,153.53,5.13734247]
[1745566637633,6.5102,153.56,153.53,11.64834247]
[1745566637835,6.5105,153.55,153.53,11.64834247]
[1745566638534,28.53734247,153.58,153.54,6.5107]
[1745566638936,6.5102,153.56,153.54,6.5107]
[1745566639237,28.53734247,153.58,153.53,11.64834247]
[1745566639733,6.5106,153.55,153.53,5.13734247]
[1745566639932,28.53734247,153.58,153.53,5.13734247]
[1745566640237,28.53734247,153.58,153.53,11.64834247]
[1745566640836,6.5103,153.56,153.53,11.64834247]
[1745566641136,6.5103,153.56,153.54,6.5108]
[1745566641432,28.53734247,153.58,153.53,5.13734247]
[1745566641636,28.53734247,153.58,153.54,6.5106]
[1745566642339,6.5098,153.57,153.55,6.5104]
[1745566642541,6.5098,153.57,153.55,11.64774247]
[1745566643643,29.9094,153.58,153.56,6.5099]
[1745566643943,29.9094,153.58,153.55,5.13734247]
[1745566644141,23.4,153.61,153.57,11.64664247]
[1745566644340,23.4,153.61,153.57,5.13734247]
[1745566644841,23.4,153.61,153.57,11.64664247]
[1745566645043,23.4,153.61,153.57,5.13734247]
[1745566645642,6.5085,153.6,153.57,11.64664247]
[1745566646248,29.9079,153.61,153.58,6.5091]
[1745566646539,23.4,153.61,153.58,6.5091]
[1745566647545,6.5083,153.6,153.58,6.5091]
[1745566647945,6.5083,153.6,153.57,11.64674247]
[1745566648151,6.5083,153.6,153.57,5.13734247]
[1745566648442,23.4,153.61,153.57,5.13734247]
[1745566648644,23.38,153.64,153.59,5.13734247]
[1745566648841,23.38,153.64,153.63,5.13734247]
[1745566649039,25.2723,153.68,153.65,6.5059]
[1745566649241,25.2723,153.68,153.65,5.13734247]
[1745566649444,31.7774,153.68,153.65,5.13734247]
[1745566649745,31.7774,153.68,153.65,11.64344247]
[1745566650145,6.5054,153.67,153.65,11.64344247]
[1745566650344,6.5054,153.67,153.65,5.13734247]
[1745566652343,25.2723,153.68,153.65,5.13734247]
[1745566652548,30.40964247,153.68,153.63,5.13734247]
[1745566652745,5.13734247,153.66,153.59,5.13734247]
[1745566653046,5.13734247,153.64,153.57,5.13734247]
[1745566653247,5.13734247,153.62,153.57,5.13734247]
[1745566653444,6.5085,153.6,153.57,11.64664247]
[1745566655948,6.5085,153.6,153.58,6.5091]
[1745566656148,28.51734247,153.62,153.57,5.13734247]
[1745566656649,6.508,153.61,153.58,6.5089]
[1745566656847,28.51734247,153.62,153.57,5.13734247]
[1745566657549,6.5081,153.61,153.58,6.509]
[1745566657848,6.5081,153.61,153.57,5.13734247]
[1745566658248,6.5081,153.61,153.58,6.5089]
[1745566658751,35.02494247,153.62,153.59,6.5086]
[1745566659549,6.5081,153.61,153.59,6.5086]
[1745566659756,6.5081,153.61,153.58,6.5089]
[1745566660949,35.02494247,153.62,153.59,6.5086]
[1745566661250,28.51734247,153.62,153.59,6.5086]
[1745566662251,6.508,153.61,153.59,6.5086]
[1745566662553,28.51734247,153.62,153.6,6.5082]
[1745566663050,35.02504247,153.62,153.59,6.5086]
[1745566664253,6.5079,153.61,153.58,6.5089]
[1745566664744,6.5079,153.61,153.57,5.13734247]
[1745566664946,5.13734247,153.58,153.53,10.77274247]
[1745566665149,5.13734247,153.58,153.53,5.13734247]
[1745566665646,11.64654247,153.58,153.55,6.5101]
[1745566665856,5.13734247,153.58,153.53,5.13734247]
[1745566666050,6.5103,153.56,153.54,6.5105]
[1745566666448,5.13734247,153.58,153.54,6.5105]
[1745566666752,5.13734247,153.58,153.55,6.5103]
[1745566666942,5.13734247,153.58,153.53,5.13734247]
[1745566667144,6.5099,153.57,153.54,6.5106]
[1745566667343,5.13734247,153.58,153.54,6.5106]
[1745566667750,6.5098,153.57,153.54,6.5106]
[1745566668756,6.51,153.56,153.54,6.5106]
[1745566669256,6.51,153.56,153.53,6.5109]
[1745566669455,11.64734247,153.56,153.53,6.5109]
[1745566670456,11.64734247,153.56,153.54,6.5108]
[1745566670655,6.5104,153.55,153.52,5.13734247]
[1745566671156,6.5104,153.55,153.53,6.5111]
[1745566671957,6.5104,153.55,153.52,6.5115]
[1745566672157,5.13734247,153.56,153.51,5.13734247]
[1745566672457,5.13734247,153.56,153.52,6.5116]
[1745566672959,6.511,153.54,153.52,6.5116]
[1745566674161,5.13734247,153.54,153.47,28.51734247]
[1745566674353,5.13734247,153.52,153.47,28.51734247]
[1745566674560,11.64924247,153.52,153.47,28.51734247]
[1745566674760,5.13734247,153.52,153.47,28.51734247]
[1745566675263,6.5115,153.53,153.51,6.5121]
[1745566675660,6.5115,153.53,153.49,5.13734247]
[1745566675862,6.5115,153.53,153.5,6.5124]
[1745566676960,35.02834247,153.54,153.51,6.512]
[1745566677161,28.51734247,153.54,153.51,6.512]
[1745566677563,6.5115,153.53,153.51,6.512]
[1745566678763,6.5115,153.53,153.5,6.5124]
[1745566679861,6.5115,153.53,153.51,6.512]
[1745566680163,35.02844247,153.54,153.49,5.13734247]
[1745566680359,35.02844247,153.54,153.51,6.5117]
[1745566680755,6.5114,153.53,153.49,5.13734247]
[1745566680955,6.5114,153.53,153.5,6.5122]
[1745566681258,6.5114,153.53,153.49,5.13734247]
[1745566681659,6.5114,153.53,153.5,6.5122]
[1745566681963,6.5114,153.53,153.49,5.13734247]
[1745566682160,6.5114,153.53,153.5,6.5121]
[1745566682363,6.5114,153.53,153.49,5.13734247]
[1745566682657,5.13734247,153.53,153.49,11.65004247]
[1745566682863,5.13734247,153.53,153.47,28.51734247]
[1745566683265,6.5124,153.51,153.48,6.513]
[1745566683560,5.13734247,153.53,153.48,6.513]
[1745566683864,6.5124,153.51,153.48,6.513]
[1745566684466,6.5126,153.5,153.48,6.513]
[1745566684761,5.13734247,153.53,153.47,11.65084247]
[1745566684964,6.5134,153.48,153.45,5.13734247]
[1745566685165,5.13734247,153.51,153.45,5.13734247]
[1745566685465,5.13734247,153.51,153.47,6.5138]
[1745566685766,6.5132,153.49,153.47,6.5138]
[1745566685968,5.13734247,153.51,153.46,6.5141]
[1745566686468,6.5132,153.49,153.46,6.5141]
[1745566687168,6.5134,153.48,153.45,11.65174247]
[1745566687468,6.5134,153.48,153.45,5.13734247]
[1745566687770,6.5134,153.48,153.46,6.514]
[1745566688772,6.5131,153.49,153.47,6.5138]
[1745566688964,23.38,153.5,153.45,5.13734247]
[1745566689165,6.5137,153.48,153.45,6.5144]
[1745566689768,23.38,153.5,153.45,6.5144]
[1745566690169,23.38,153.5,153.46,6.5141]
[1745566690468,23.38,153.5,153.44,5.13734247]
[1745566690964,6.5136,153.48,153.44,5.13734247]
[1745566691268,23.38,153.5,153.44,5.13734247]
[1745566691459,23.38,153.5,153.47,6.5136]
[1745566692571,6.513,153.49,153.47,6.5136]
[1745566692769,23.38,153.5,153.44,5.13734247]
[1745566693269,6.513,153.49,153.47,6.5136]
[1745566694468,6.5134,153.48,153.46,6.514]
[1745566694659,6.5134,153.48,153.44,5.13734247]
[1745566694865,5.13734247,153.49,153.44,5.13734247]
[1745566695164,6.5138,153.47,153.45,6.5143]
[1745566695768,5.13734247,153.49,153.44,11.65214247]
[1745566696164,5.13734247,153.49,153.44,5.13734247]
[1745566696366,6.514,153.47,153.44,5.13734247]
[1745566697068,6.514,153.47,153.44,11.65204247]
[1745566697671,6.514,153.47,153.45,6.5146]
[1745566697971,6.514,153.47,153.41,23.4]
[1745566697972,6.514,153.47,153.43,5.13734247]
[1745566698474,6.5136,153.48,153.43,5.13734247]
[1745566700172,6.5136,153.48,153.46,6.514]
[1745566703876,6.5136,153.48,153.43,5.13734247]
[1745566704078,6.5138,153.47,153.43,5.13734247]
[1745566704377,6.5138,153.47,153.45,6.5144]
[1745566704675,6.5136,153.48,153.43,5.13734247]
[1745566704875,5.13734247,153.49,153.45,6.5144]
[1745566705277,6.514,153.47,153.45,6.5144]
[1745566705579,5.13734247,153.49,153.46,6.5142]
[1745566705784,6.5136,153.48,153.46,6.5142]
[1745566706981,6.5138,153.47,153.45,6.5144]
[1745566709676,6.5142,153.46,153.44,6.5149]
[1745566709980,5.13734247,153.47,153.41,5.13734247]
[1745566710280,5.13734247,153.45,153.41,5.13734247]
[1745566710976,5.13734247,153.45,153.42,6.5157]
[1745566711181,5.13734247,153.45,153.41,5.13734247]
[1745566711583,11.65234247,153.45,153.41,5.13734247]
[1745566711789,6.515,153.45,153.41,5.13734247]
[1745566711983,6.515,153.45,153.43,6.5152]
[1745566715189,6.5151,153.44,153.42,6.5157]
[1745566715589,28.53734247,153.46,153.41,5.13734247]
[1745566715784,6.5149,153.45,153.41,5.13734247]
[1745566715985,28.53734247,153.46,153.41,5.13734247]
[1745566716289,6.5154,153.44,153.41,11.65324247]
[1745566716688,6.5154,153.44,153.41,5.13734247]
[1745566717288,6.5154,153.44,153.42,6.5156]
[1745566718593,6.5148,153.45,153.43,6.5155]
[1745566720991,28.53734247,153.46,153.41,5.13734247]
[1745566721195,23.4,153.46,153.43,5.13734247]
[1745566721493,29.9142,153.46,153.44,6.5147]
[1745566721894,23.4,153.46,153.43,5.13734247]
[1745566722095,6.514,153.47,153.45,6.5143]
[1745566723496,15.54694247,153.48,153.46,6.5142]
[1745566723696,23.4,153.49,153.47,5.13734247]
[1745566724990,23.4,153.49,153.47,11.65084247]
[1745566726796,23.4,153.49,153.48,6.5134]
[1745566739200,23.38,153.54,153.47,5.13734247]
[1745566739401,23.38,153.54,153.5,5.13734247]
[1745566739798,29.8911,153.54,153.52,6.5115]
[1745566740301,6.5097,153.57,153.52,5.13734247]
[1745566740500,6.5097,153.57,153.54,5.13734247]
[1745566740501,23.38,153.57,153.54,5.13734247]
[1745566741101,23.38,153.57,153.55,6.5102]
[1745566742499,29.8896,153.57,153.55,6.5102]
[1745566742801,29.8896,153.57,153.54,11.64794247]
[1745566743001,29.8896,153.57,153.5,23.38]
[1745566743002,6.5103,153.56,153.52,5.13734247]
[1745566743602,5.13734247,153.55,153.5,5.13734247]
[1745566744101,6.5111,153.54,153.51,6.5118]
[1745566744296,11.64844247,153.54,153.51,6.5118]
[1745566745103,5.13734247,153.54,153.51,6.5118]
[1745566746403,5.13734247,153.54,153.52,6.5116]
[1745566746902,11.64824247,153.54,153.51,6.5119]
[1745566747103,5.13734247,153.52,153.47,28.51734247]
[1745566747297,5.13734247,153.52,153.5,6.5123]
[1745566749300,11.64904247,153.52,153.5,6.5123]
[1745566749602,5.13734247,153.52,153.5,6.5123]
[1745566750405,5.13734247,153.52,153.49,6.5128]
[1745566750705,5.13734247,153.52,153.47,28.51734247]
[1745566750910,11.64924247,153.52,153.47,28.51734247]
[1745566751199,5.13734247,153.52,153.47,28.51734247]
[1745566751606,11.64904247,153.52,153.5,6.5124]
[1745566752107,11.64904247,153.52,153.49,6.5127]
[1745566752712,5.13734247,153.5,153.47,6.5135]
[1745566753202,5.13734247,153.48,153.43,7.09764247]
[1745566753398,5.13734247,153.48,153.43,5.13734247]
[1745566753801,11.65094247,153.48,153.46,6.5141]
[1745566754509,5.13734247,153.48,153.47,6.5138]
[1745566755008,5.13734247,153.48,153.43,5.13734247]
[1745566755606,11.65084247,153.48,153.46,6.514]
[1745566756007,5.13734247,153.48,153.46,6.514]
[1745566756207,5.13734247,153.48,153.47,6.5138]
[1745566757009,11.65084247,153.48,153.46,6.5141]
[1745566758110,5.13734247,153.48,153.43,5.13734247]
[1745566758512,6.5141,153.47,153.43,5.13734247]
[1745566758913,5.13734247,153.46,153.41,28.51734247]
[1745566759212,11.65194247,153.46,153.43,6.5153]
[1745566760214,11.65194247,153.46,153.44,6.515]
[1745566760417,5.13734247,153.46,153.41,28.51734247]
[1745566760817,5.13734247,153.46,153.44,6.5148]
[1745566761316,5.13734247,153.48,153.47,6.5138]
[1745566764321,23.38,153.49,153.48,6.5134]
[1745566770320,29.893,153.49,153.47,6.5136]
[1745566771322,28.51734247,153.49,153.44,5.13734247]
[1745566772121,6.5134,153.48,153.46,6.514]
[1745566773220,35.03044247,153.49,153.46,6.514]
[1745566774222,35.03044247,153.49,153.47,6.5136]
[1745566775220,28.51734247,153.49,153.45,6.5144]
[1745566775421,28.51734247,153.49,153.44,5.13734247]
[1745566776321,28.51734247,153.49,153.46,6.5138]
[1745566778023,6.5135,153.48,153.46,6.5138]
[1745566778625,35.03044247,153.49,153.47,6.5138]
[1745566781927,23.38,153.49,153.48,6.5134]
[1745566783431,23.38,153.49,153.47,6.5136]
[1745566783633,23.38,153.49,153.46,5.13734247]
[1745566783826,23.38,153.49,153.47,6.5134]
[1745566787033,29.893,153.49,153.47,6.5134]
[1745566787533,6.5134,153.48,153.46,11.65134247]
[1745566787835,23.38,153.49,153.46,11.65134247]
[1745566788235,29.8933,153.49,153.46,11.65134247]
[1745566788833,6.5134,153.48,153.46,11.65134247]
[1745566789035,23.38,153.49,153.47,6.5138]
[1745566789736,29.8932,153.49,153.47,6.5138]
[1745566791343,29.8932,153.49,153.46,11.65134247]
[1745566792441,29.8932,153.49,153.47,6.5138]
[1745566792643,29.8932,153.49,153.46,5.13734247]
[1745566793341,29.8932,153.49,153.47,6.5138]
[1745566793536,29.8932,153.49,153.46,5.13734247]
[1745566794343,29.8932,153.49,153.47,6.5135]
[1745566794542,23.36,153.52,153.48,5.13734247]
[1745566795642,6.5121,153.51,153.49,6.5128]
[1745566796041,23.36,153.52,153.48,5.13734247]
[1745566796441,23.36,153.52,153.5,6.5123]
[1745566797344,29.8718,153.52,153.5,6.5123]
[1745566799847,29.8718,153.52,153.49,6.5127]
[1745566800138,23.36,153.52,153.49,6.5127]
[1745566800343,23.36,153.52,153.49,6.5128]
[1745566800741,28.49734247,153.52,153.49,6.5128]
[1745566801043,6.5124,153.51,153.49,6.5128]
[1745566801245,6.5124,153.51,153.48,11.65054247]
[1745566801445,35.00904247,153.52,153.48,5.13734247]
[1745566801745,35.00904247,153.52,153.49,6.5127]
[1745566802348,6.5121,153.51,153.49,6.5127]
[1745566804249,35.00924247,153.52,153.49,6.5127]
[1745566804546,35.00924247,153.52,153.5,6.5124]
[1745566804942,28.49734247,153.52,153.48,5.13734247]
[1745566805241,23.36,153.52,153.48,5.13734247]
[1745566805441,23.36,153.52,153.51,6.5121]
[1745566805645,23.36,153.55,153.5,5.13734247]
[1745566805845,23.36,153.55,153.52,5.13734247]
[1745566806047,23.36,153.55,153.53,6.5109]
[1745566806247,23.36,153.55,153.52,5.13734247]
[1745566806546,6.5108,153.54,153.52,5.13734247]
[1745566806746,23.36,153.55,153.52,5.13734247]
[1745566807648,29.8708,153.55,153.52,11.64884247]
[1745566808551,29.8708,153.55,153.52,5.13734247]
[1745566808753,6.5109,153.54,153.52,5.13734247]
[1745566810352,5.13734247,153.54,153.49,5.13734247]
[1745566810952,6.5119,153.52,153.49,11.64994247]
[1745566811146,5.13734247,153.54,153.49,5.13734247]
[1745566811451,23.36,153.55,153.51,5.13734247]
[1745566812051,6.5109,153.54,153.51,11.64924247]
[1745566812949,29.8706,153.55,153.52,6.5117]
[1745566813454,23.36,153.55,153.53,6.5109]
[1745566815057,29.8705,153.55,153.53,6.5109]
[1745566815257,23.36,153.55,153.51,11.64924247]
[1745566815557,6.511,153.54,153.51,11.64924247]
[1745566817157,6.5114,153.53,153.51,5.13734247]
[1745566818258,23.36,153.55,153.49,35.01004247]
[1745566818452,5.13734247,153.54,153.49,5.13734247]
[1745566818760,6.5124,153.51,153.49,5.13734247]
[1745566820059,6.5124,153.51,153.49,11.65004247]
[1745566821957,6.5125,153.5,153.48,6.5132]
[1745566822156,5.13734247,153.52,153.47,5.13734247]
[1745566823161,6.5123,153.51,153.47,5.13734247]
[1745566823361,5.13734247,153.52,153.47,5.13734247]
[1745566823861,11.64924247,153.52,153.49,6.5126]
[1745566824162,5.13734247,153.52,153.47,5.13734247]
[1745566824459,11.64924247,153.52,153.49,6.5126]
[1745566825363,5.13734247,153.5,153.45,5.13734247]
[1745566825863,11.65004247,153.5,153.47,6.5136]
[1745566826460,5.13734247,153.48,153.43,28.47734247]
[1745566826667,5.13734247,153.46,153.43,23.34]
[1745566826867,5.13734247,153.46,153.41,7.16464247]
[1745566827567,5.13734247,153.46,153.44,6.5148]
[1745566827864,5.13734247,153.46,153.41,5.13734247]
[1745566828363,5.13734247,153.46,153.45,6.5146]
[1745566829263,11.65094247,153.48,153.46,6.5141]
[1745566829565,5.13734247,153.48,153.43,5.13734247]
[1745566829765,5.13734247,153.48,153.47,6.5138]
[1745566830068,11.64994247,153.5,153.45,5.13734247]
[1745566830363,11.64994247,153.5,153.47,6.5135]
[1745566830563,5.13734247,153.5,153.45,5.13734247]
[1745566830864,6.5134,153.48,153.45,11.65174247]
[1745566831266,11.65074247,153.48,153.45,6.5144]
[1745566833768,5.13734247,153.48,153.46,6.5142]
[1745566834368,11.65084247,153.48,153.45,6.5144]
[1745566836468,6.5139,153.47,153.44,6.5149]
[1745566836669,6.5139,153.47,153.43,5.13734247]
[1745566837071,11.65084247,153.48,153.45,6.5146]
[1745566838271,5.13734247,153.46,153.41,5.13734247]
[1745566838465,5.13734247,153.44,153.39,5.13734247]
[1745566838771,5.13734247,153.42,153.34,27.1644]
[1745566838970,5.13734247,153.42,153.37,5.13734247]
[1745566839166,11.65344247,153.42,153.39,6.517]
[1745566839463,5.13734247,153.42,153.37,5.13734247]
[1745566840166,6.5165,153.41,153.38,6.5176]
[1745566841472,11.65334247,153.42,153.39,6.517]
[1745566841772,5.13734247,153.42,153.39,6.517]
[1745566842272,11.65344247,153.42,153.39,6.517]
[1745566842767,5.13734247,153.42,153.39,6.517]
[1745566843371,5.13734247,153.42,153.37,5.13734247]
[1745566843570,5.13734247,153.4,153.35,5.13734247]
[1745566843872,11.65444247,153.4,153.37,6.5179]
[1745566844169,5.13734247,153.4,153.37,6.5179]
[1745566844471,6.5174,153.39,153.36,6.5182]
[1745566844874,23.36,153.43,153.35,5.13734247]
[1745566845069,11.65384247,153.41,153.37,6.5177]
[1745566845371,11.65384247,153.41,153.37,5.13734247]
[1745566845571,11.65384247,153.41,153.38,6.5173]
[1745566846372,29.8758,153.43,153.39,5.13734247]
[1745566846572,23.36,153.43,153.39,5.13734247]
[1745566847368,6.516,153.42,153.4,6.5166]
[1745566847572,23.36,153.43,153.4,6.5166]
[1745566847773,29.8757,153.43,153.4,6.5166]
[1745566848877,29.8757,153.43,153.41,6.5163]
[1745566849078,23.36,153.43,153.39,5.13734247]
[1745566849477,6.5153,153.44,153.41,6.516]
[1745566850880,6.5155,153.43,153.41,6.516]
[1745566851881,6.5153,153.44,153.41,6.516]
[1745566853876,6.5148,153.45,153.39,5.13734247]
[1745566854080,23.34,153.46,153.43,5.13734247]
[1745566854280,25.1764,153.49,153.45,5.13734247]
[1745566854585,6.5136,153.48,153.46,6.5142]
[1745566854883,25.1764,153.49,153.46,6.5142]
[1745566855083,29.8532,153.49,153.46,6.5142]
[1745566855582,23.34,153.49,153.46,6.5142]
[1745566855783,6.5136,153.48,153.45,11.65184247]
[1745566856083,23.34,153.49,153.45,5.13734247]
[1745566856284,6.514,153.47,153.45,5.13734247]
[1745566856488,23.34,153.49,153.45,5.13734247]
[1745566857377,6.5136,153.48,153.46,6.5141]
[1745566857583,23.34,153.49,153.45,5.13734247]
[1745566858182,6.5136,153.48,153.45,11.65164247]
[1745566860180,23.34,153.49,153.47,5.13734247]
[1745566860386,23.34,153.52,153.47,5.13734247]
[1745566860680,6.513,153.49,153.47,5.13734247]
[1745566860984,6.513,153.49,153.47,11.65104247]
[1745566861182,5.13734247,153.51,153.45,5.13734247]
[1745566861379,6.5136,153.48,153.45,11.65174247]
[1745566861577,5.13734247,153.51,153.45,5.13734247]
[1745566861781,5.13734247,153.51,153.47,5.13734247]
[1745566862076,23.34,153.52,153.47,5.13734247]
[1745566862277,23.34,153.52,153.49,5.13734247]
[1745566862482,23.34,153.52,153.5,6.5122]
[1745566863489,29.8517,153.52,153.5,6.5122]
[1745566863688,23.34,153.52,153.5,6.5122]
[1745566864790,6.5116,153.53,153.5,6.5122]
[1745566864987,6.5117,153.52,153.5,6.5122]
[1745566865286,6.5117,153.52,153.49,11.65004247]
[1745566865587,6.5117,153.52,153.49,5.13734247]
[1745566867288,6.5117,153.52,153.5,6.5125]
[1745566867588,23.34,153.55,153.51,5.13734247]
[1745566867889,23.34,153.55,153.53,5.13734247]
[1745566868387,6.5104,153.56,153.53,11.64824247]
[1745566868983,6.5104,153.55,153.53,11.64824247]
[1745566869190,6.5104,153.55,153.53,5.13734247]
[1745566869589,6.5101,153.56,153.53,5.13734247]
[1745566870088,28.47734247,153.58,153.53,5.13734247]
[1745566870287,29.8495,153.58,153.55,5.13734247]
[1745566870589,29.8495,153.58,153.55,11.64754247]
[1745566870791,6.5096,153.57,153.55,11.64754247]
[1745566871193,29.8495,153.58,153.55,11.64754247]
[1745566872794,32.37024247,153.61,153.55,5.13734247]
[1745566873094,32.37024247,153.61,153.57,5.13734247]
[1745566873297,6.5087,153.6,153.57,5.13734247]
[1745566873701,32.37024247,153.61,153.57,5.13734247]
[1745566873893,32.37024247,153.61,153.56,6.5097]
[1745566874194,6.5091,153.58,153.56,6.5097]
[1745566874598,32.37024247,153.61,153.57,6.5095]
[1745566874599,6.5086,153.6,153.57,6.5095]
[1745566874887,23.34,153.61,153.59,5.13734247]
[1745566875092,23.34,153.64,153.59,5.13734247]
[1745566875795,23.34,153.64,153.61,6.5079]
[1745566876294,6.507,153.63,153.6,6.508]
[1745566876895,23.34,153.64,153.61,5.13734247]
[1745566877396,29.8466,153.64,153.61,11.64494247]
[1745566877596,23.34,153.64,153.61,11.64494247]
[1745566877798,29.8468,153.64,153.61,11.64494247]
[1745566878198,23.34,153.64,153.61,11.64494247]
[1745566878390,6.5072,153.63,153.61,5.13734247]
[1745566879397,6.5072,153.63,153.6,6.5081]
[1745566880193,6.5076,153.62,153.59,11.64584247]
[1745566880398,5.13734247,153.62,153.58,23.32]
[1745566880695,5.13734247,153.62,153.57,5.13734247]
[1745566881199,6.509,153.59,153.56,11.64704247]
[1745566881498,6.509,153.59,153.56,6.5097]
[1745566882099,6.5092,153.58,153.56,6.5097]
[1745566882499,5.13734247,153.6,153.55,5.13734247]
[1745566882500,5.13734247,153.6,153.57,6.5096]
[1745566882696,6.509,153.59,153.55,5.13734247]
[1745566883100,6.509,153.59,153.56,6.5098]
[1745566883702,6.509,153.59,153.57,6.5095]
[1745566884000,6.509,153.59,153.55,5.13734247]
[1745566884200,5.13734247,153.6,153.55,5.13734247]
[1745566884201,5.13734247,153.6,153.55,6.5102]
[1745566884401,5.13734247,153.56,153.51,23.32]
[1745566884606,5.13734247,153.56,153.51,28.45734247]
[1745566885006,11.64764247,153.56,153.53,6.5109]
[1745566885902,5.13734247,153.56,153.54,6.5108]
[1745566886107,5.13734247,153.58,153.53,5.13734247]
[1745566886309,5.13734247,153.58,153.56,6.5098]
[1745566886709,5.13734247,153.58,153.53,5.13734247]
[1745566886906,5.13734247,153.58,153.55,6.5101]
[1745566887105,11.64664247,153.58,153.53,5.13734247]
[1745566887412,3.9095,153.59,153.53,5.13734247]
[1745566887708,28.45734247,153.6,153.55,5.13734247]
[1745566887907,28.45734247,153.6,153.55,11.64764247]
[1745566888107,5.13734247,153.58,153.55,11.64764247]
[1745566889310,6.5096,153.57,153.55,11.64764247]
[1745566890912,6.5093,153.58,153.55,11.64764247]
[1745566891112,5.13734247,153.59,153.55,11.64764247]
[1745566892214,6.5095,153.58,153.55,11.64764247]
[1745566892914,6.5096,153.57,153.55,11.64764247]
[1745566893216,6.5096,153.57,153.54,6.5106]
[1745566893514,6.5107,153.55,153.52,5.13734247]
[1745566893913,6.5107,153.55,153.52,11.64884247]
[1745566894113,6.5107,153.55,153.52,5.13734247]
[1745566894316,6.5107,153.55,153.53,6.5112]
[1745566894510,6.5107,153.55,153.52,5.13734247]
[1745566894810,5.13734247,153.57,153.51,5.13734247]
[1745566895108,5.13734247,153.57,153.52,6.5113]
[1745566895515,6.5107,153.55,153.52,6.5113]
[1745566897215,6.5109,153.54,153.52,6.5113]
[1745566897918,23.32,153.6,153.53,6.5113]
[1745566898117,5.13734247,153.57,153.51,5.13734247]
[1745566898617,6.5102,153.56,153.51,5.13734247]
[1745566899416,5.13734247,153.57,153.51,5.13734247]
[1745566899812,5.13734247,153.57,153.53,6.511]
[1745566900118,6.5104,153.55,153.53,6.511]
[1745566900421,5.13734247,153.57,153.52,6.5115]
[1745566900613,6.5107,153.55,153.52,6.5115]
[1745566900914,5.13734247,153.57,153.52,6.5115]
[1745566902918,5.13734247,153.57,153.53,6.5112]
[1745566903218,5.13734247,153.57,153.51,5.13734247]
[1745566903419,6.5102,153.56,153.54,6.5108]
[1745566903919,11.64714247,153.57,153.54,6.5108]
[1745566904419,11.64714247,153.57,153.55,6.5104]
[1745566904920,6.51,153.56,153.53,5.13734247]
[1745566905118,5.13734247,153.57,153.53,5.13734247]
[1745566905615,6.5103,153.56,153.54,6.5108]
[1745566907122,5.13734247,153.57,153.53,5.13734247]
[1745566907123,11.64704247,153.57,153.55,6.5102]
[1745566907922,6.51,153.56,153.54,6.5107]
[1745566908220,6.51,153.56,153.53,5.13734247]
[1745566908422,5.13734247,153.57,153.52,5.13734247]
[1745566908622,5.13734247,153.55,153.5,5.13734247]
[1745566909123,5.13734247,153.55,153.51,6.5119]